[Event "Late-Titled-Tuesday-Blitz-December-26-2023"]
[Site "Chess.com"]
[Date "2023.12.26"]
[Round "8"]
[White "Elsa167"]
[Black "GMKrikor"]
[Result "0-1"]
[WhiteElo "2962"]
[BlackElo "2827"]
[TimeControl "180+1"]
[EndTime "15:27:33 PST"]
[Termination "GMKrikor won on time"]

1. d4 {[%clk 0:03:00.9]} 1... Nf6 {[%clk 0:03:00.3]} 2. c4 {[%clk 0:03:00.6]}
2... g6 {[%clk 0:03:00.7]} 3. Nc3 {[%clk 0:03:00.7]} 3... d5 {[%clk 0:03:01.3]}
4. Nf3 {[%clk 0:03:00.8]} 4... Bg7 {[%clk 0:03:00.8]} 5. Bg5 {[%clk 0:03:01.4]}
5... dxc4 {[%clk 0:02:58]} 6. e4 {[%clk 0:03:01.4]} 6... c5 {[%clk 0:02:58.4]}
7. d5 {[%clk 0:03:01.7]} 7... b5 {[%clk 0:02:58.5]} 8. d6 {[%clk 0:03:02.3]}
8... Bb7 {[%clk 0:02:52.6]} 9. e5 {[%clk 0:03:02.3]} 9... Ne4 {[%clk 0:02:53.3]}
10. Nxe4 {[%clk 0:03:02.2]} 10... Bxe4 {[%clk 0:02:54.2]} 11. Qe2 {[%clk
0:03:02.8]} 11... Bd3 {[%clk 0:02:21]} 12. Qd2 {[%clk 0:03:03.2]} 12... Qd7
{[%clk 0:01:36.8]} 13. Bxd3 {[%clk 0:02:20.3]} 13... cxd3 {[%clk 0:01:36.5]} 14.
Qxd3 {[%clk 0:02:20.4]} 14... exd6 {[%clk 0:01:36.6]} 15. exd6 {[%clk
0:02:20.8]} 15... O-O {[%clk 0:01:31]} 16. O-O {[%clk 0:02:19.4]} 16... c4
{[%clk 0:01:19.5]} 17. Qd5 {[%clk 0:02:18.5]} 17... Nc6 {[%clk 0:01:19.7]} 18.
Qxb5 {[%clk 0:02:04.6]} 18... Qxd6 {[%clk 0:01:10.6]} 19. Rad1 {[%clk
0:01:51.9]} 19... Qe6 {[%clk 0:00:51.1]} 20. Rfe1 {[%clk 0:01:48.2]} 20... Qc8
{[%clk 0:00:51.3]} 21. Rd6 {[%clk 0:01:37.1]} 21... Nb8 {[%clk 0:00:26.7]} 22.
Rc1 {[%clk 0:01:01.2]} 22... a6 {[%clk 0:00:26.3]} 23. Qd5 {[%clk 0:00:56.6]}
23... Ra7 {[%clk 0:00:26.3]} 24. Rxc4 {[%clk 0:00:55.3]} 24... Rc7 {[%clk
0:00:26.5]} 25. b3 {[%clk 0:00:55.7]} 25... Rxc4 {[%clk 0:00:16.2]} 26. bxc4
{[%clk 0:00:56.6]} 26... Re8 {[%clk 0:00:15.3]} 27. c5 {[%clk 0:00:52.7]} 27...
Bf8 {[%clk 0:00:15.1]} 28. Ne5 {[%clk 0:00:30.6]} 28... Qf5 {[%clk 0:00:14.3]}
29. f4 {[%clk 0:00:09]} 29... Bxd6 {[%clk 0:00:12.6]} 30. cxd6 {[%clk
0:00:09.7]} 30... Nd7 {[%clk 0:00:11.1]} 31. Be7 {[%clk 0:00:07.8]} 31... Nxe5
{[%clk 0:00:05.2]} 32. fxe5 {[%clk 0:00:08]} 32... Qd7 {[%clk 0:00:05.3]} 33.
Bf6 {[%clk 0:00:05.9]} 33... h6 {[%clk 0:00:04.4]} 34. h3 {[%clk 0:00:06]} 34...
Kh7 {[%clk 0:00:04.1]} 35. Kh2 {[%clk 0:00:05.7]} 35... Rc8 {[%clk 0:00:04.4]}
36. Qd3 {[%clk 0:00:02.2]} 36... a5 {[%clk 0:00:03.6]} 37. Qd5 {[%clk
0:00:02.3]} 37... Rc2 {[%clk 0:00:03.2]} 38. Qxa5 {[%clk 0:00:02]} 38... Qc6
{[%clk 0:00:02.8]} 0-1

[Event "Late-Titled-Tuesday-Blitz-December-26-2023"]
[Site "Chess.com"]
[Date "2023.12.26"]
[Round "8"]
[White "GothamChess"]
[Black "GiorgianBarbosa"]
[Result "1-0"]
[WhiteElo "2677"]
[BlackElo "2504"]
[TimeControl "180+1"]
[EndTime "15:27:34 PST"]
[Termination "GothamChess won on time"]

1. e4 {[%clk 0:03:00.9]} 1... c5 {[%clk 0:02:59.8]} 2. Nc3 {[%clk 0:03:00.1]}
2... g6 {[%clk 0:02:59.6]} 3. d4 {[%clk 0:03:00.1]} 3... cxd4 {[%clk 0:02:59.2]}
4. Qxd4 {[%clk 0:03:01]} 4... Nf6 {[%clk 0:02:59.4]} 5. Nf3 {[%clk 0:02:57.1]}
5... Nc6 {[%clk 0:02:58.5]} 6. Qd3 {[%clk 0:02:57.1]} 6... d6 {[%clk 0:02:58.4]}
7. Bg5 {[%clk 0:02:55.4]} 7... Bg7 {[%clk 0:02:56.8]} 8. Be2 {[%clk 0:02:49.9]}
8... O-O {[%clk 0:02:56]} 9. O-O {[%clk 0:02:48.4]} 9... Qa5 {[%clk 0:02:49.7]}
10. a3 {[%clk 0:02:42.1]} 10... Bg4 {[%clk 0:02:44.9]} 11. Bd2 {[%clk
0:02:38.1]} 11... Ne5 {[%clk 0:02:27.5]} 12. Nxe5 {[%clk 0:02:35.7]} 12... Qxe5
{[%clk 0:02:28.4]} 13. f3 {[%clk 0:02:31.2]} 13... Be6 {[%clk 0:02:25.7]} 14. f4
{[%clk 0:02:21.5]} 14... Qc5+ {[%clk 0:02:23]} 15. Be3 {[%clk 0:02:21.3]} 15...
Qc7 {[%clk 0:02:21.8]} 16. f5 {[%clk 0:02:19.7]} 16... Bd7 {[%clk 0:02:18.2]}
17. g4 {[%clk 0:02:05.4]} 17... Bc6 {[%clk 0:02:13.6]} 18. Qc4 {[%clk
0:01:33.3]} 18... Rac8 {[%clk 0:01:53.9]} 19. g5 {[%clk 0:01:24.6]} 19... Nd7
{[%clk 0:01:52.6]} 20. Rf2 {[%clk 0:01:15.4]} 20... Ne5 {[%clk 0:01:43.5]} 21.
Qb3 {[%clk 0:01:15.2]} 21... b6 {[%clk 0:01:32.2]} 22. Raf1 {[%clk 0:01:11.2]}
22... Qb7 {[%clk 0:01:10.1]} 23. f6 {[%clk 0:01:06.8]} 23... exf6 {[%clk
0:01:09.4]} 24. gxf6 {[%clk 0:01:07.7]} 24... Bh8 {[%clk 0:01:09.8]} 25. Rf4
{[%clk 0:00:57]} 25... Rce8 {[%clk 0:00:53.3]} 26. Bb5 {[%clk 0:00:51]} 26...
Re6 {[%clk 0:00:42.6]} 27. Nd5 {[%clk 0:00:37.7]} 27... Bxd5 {[%clk 0:00:27.4]}
28. exd5 {[%clk 0:00:36.5]} 28... Ree8 {[%clk 0:00:22.2]} 29. Bxe8 {[%clk
0:00:29.1]} 29... Rxe8 {[%clk 0:00:22]} 30. Bd4 {[%clk 0:00:28.5]} 30... Qd7
{[%clk 0:00:18.3]} 31. Kh1 {[%clk 0:00:25.1]} 31... h6 {[%clk 0:00:15.4]} 32.
Qg3 {[%clk 0:00:21]} 32... Qb5 {[%clk 0:00:12]} 33. Qg2 {[%clk 0:00:18.5]} 33...
Kh7 {[%clk 0:00:09.8]} 34. b3 {[%clk 0:00:18]} 34... Qa5 {[%clk 0:00:08.1]} 35.
a4 {[%clk 0:00:16.3]} 35... b5 {[%clk 0:00:07.9]} 36. axb5 {[%clk 0:00:15.7]}
36... Qxb5 {[%clk 0:00:07.9]} 37. Rh4 {[%clk 0:00:13.5]} 37... Qd7 {[%clk
0:00:04.5]} 38. c4 {[%clk 0:00:10.8]} 38... h5 {[%clk 0:00:03.3]} 39. Qg5 {[%clk
0:00:09.6]} 39... Ng4 {[%clk 0:00:01.1]} 40. Rxh5+ {[%clk 0:00:07.5]} 40... gxh5
{[%clk 0:00:01.1]} 41. Qxh5+ {[%clk 0:00:06.8]} 1-0

[Event "Late-Titled-Tuesday-Blitz-December-26-2023"]
[Site "Chess.com"]
[Date "2023.12.26"]
[Round "8"]
[White "Onthequiet"]
[Black "Nick12772"]
[Result "1-0"]
[WhiteElo "2427"]
[BlackElo "2303"]
[TimeControl "180+1"]
[EndTime "15:27:34 PST"]
[Termination "Onthequiet won by checkmate"]

1. d4 {[%clk 0:03:00.9]} 1... Nf6 {[%clk 0:03:00.2]} 2. Nf3 {[%clk 0:03:00.3]}
2... g6 {[%clk 0:03:00.7]} 3. Bg5 {[%clk 0:02:58.4]} 3... Bg7 {[%clk 0:03:01]}
4. Nbd2 {[%clk 0:02:58.3]} 4... d5 {[%clk 0:03:01.1]} 5. c3 {[%clk 0:02:58.1]}
5... O-O {[%clk 0:03:00.8]} 6. e3 {[%clk 0:02:57.8]} 6... c6 {[%clk 0:02:59.3]}
7. Be2 {[%clk 0:02:53.9]} 7... Bg4 {[%clk 0:02:58.8]} 8. O-O {[%clk 0:02:52.3]}
8... Nbd7 {[%clk 0:02:57.9]} 9. b4 {[%clk 0:02:52]} 9... a6 {[%clk 0:02:57.9]}
10. h3 {[%clk 0:02:49.9]} 10... Bxf3 {[%clk 0:02:57.7]} 11. Bxf3 {[%clk
0:02:49.5]} 11... e5 {[%clk 0:02:35.2]} 12. a4 {[%clk 0:02:43.7]} 12... exd4
{[%clk 0:02:30.8]} 13. cxd4 {[%clk 0:02:42.6]} 13... h6 {[%clk 0:02:27.5]} 14.
Bh4 {[%clk 0:02:37.6]} 14... Qe7 {[%clk 0:02:05.3]} 15. Qb3 {[%clk 0:02:27.9]}
15... g5 {[%clk 0:02:00.2]} 16. Bg3 {[%clk 0:02:23.6]} 16... Ne8 {[%clk
0:01:45.5]} 17. Rac1 {[%clk 0:02:16.9]} 17... f5 {[%clk 0:01:41.7]} 18. Rfe1
{[%clk 0:02:13.1]} 18... Nef6 {[%clk 0:01:37.5]} 19. b5 {[%clk 0:02:11.5]} 19...
axb5 {[%clk 0:01:37.1]} 20. axb5 {[%clk 0:02:10.6]} 20... Rac8 {[%clk
0:01:35.5]} 21. bxc6 {[%clk 0:02:07.5]} 21... bxc6 {[%clk 0:01:36.4]} 22. Qb7
{[%clk 0:02:02.9]} 22... Ne4 {[%clk 0:01:36.3]} 23. Bxe4 {[%clk 0:01:57.2]}
23... dxe4 {[%clk 0:01:30.9]} 24. Rxc6 {[%clk 0:01:50.8]} 24... Rxc6 {[%clk
0:01:30.5]} 25. Qxc6 {[%clk 0:01:49.8]} 25... Nf6 {[%clk 0:01:17.5]} 26. Be5
{[%clk 0:01:46.3]} 26... Qd7 {[%clk 0:01:14.4]} 27. Qxd7 {[%clk 0:01:41.8]}
27... Nxd7 {[%clk 0:01:15.3]} 28. Bxg7 {[%clk 0:01:41.2]} 28... Kxg7 {[%clk
0:01:16.2]} 29. Rc1 {[%clk 0:01:38.6]} 29... Kf6 {[%clk 0:01:12.5]} 30. Rc6+
{[%clk 0:01:36.4]} 30... Kg7 {[%clk 0:01:03]} 31. Rc7 {[%clk 0:01:32.4]} 31...
Rf7 {[%clk 0:01:03.2]} 32. g4 {[%clk 0:01:32.2]} 32... fxg4 {[%clk 0:01:01.4]}
33. hxg4 {[%clk 0:01:32.7]} 33... Nf6 {[%clk 0:01:01.7]} 34. Rxf7+ {[%clk
0:01:28.6]} 34... Kxf7 {[%clk 0:01:02.6]} 35. Kg2 {[%clk 0:01:28]} 35... Ke6
{[%clk 0:00:59]} 36. f3 {[%clk 0:01:26.2]} 36... exf3+ {[%clk 0:00:55.6]} 37.
Kxf3 {[%clk 0:01:26.6]} 37... Kd5 {[%clk 0:00:55.4]} 38. Nb3 {[%clk 0:01:18.8]}
38... Ne4 {[%clk 0:00:47.8]} 39. Nc1 {[%clk 0:01:17.9]} 39... Nd2+ {[%clk
0:00:44.8]} 40. Ke2 {[%clk 0:01:16.4]} 40... Nc4 {[%clk 0:00:43.5]} 41. Nd3
{[%clk 0:01:14.2]} 41... Ke4 {[%clk 0:00:42.6]} 42. Nf2+ {[%clk 0:01:13.9]}
42... Kd5 {[%clk 0:00:41.9]} 43. Kd3 {[%clk 0:01:10.4]} 43... Nb2+ {[%clk
0:00:40.8]} 44. Ke2 {[%clk 0:01:06.3]} 44... Nc4 {[%clk 0:00:36.9]} 45. Nd1
{[%clk 0:01:05.8]} 45... Nd6 {[%clk 0:00:26.5]} 46. Kd3 {[%clk 0:01:04.5]} 46...
Ne4 {[%clk 0:00:19.9]} 47. Nc3+ {[%clk 0:01:01.8]} 47... Nxc3 {[%clk 0:00:20.4]}
48. Kxc3 {[%clk 0:01:02.2]} 48... Ke4 {[%clk 0:00:03.7]} 49. Kd2 {[%clk
0:00:59.6]} 49... h5 {[%clk 0:00:02]} 50. gxh5 {[%clk 0:00:57.8]} 50... g4
{[%clk 0:00:02.7]} 51. Ke2 {[%clk 0:00:56.1]} 51... Kf5 {[%clk 0:00:02.9]} 52.
Kf2 {[%clk 0:00:50.4]} 52... Kg5 {[%clk 0:00:03.3]} 53. d5 {[%clk 0:00:48.5]}
53... Kxh5 {[%clk 0:00:03.6]} 54. d6 {[%clk 0:00:48.4]} 54... Kg6 {[%clk
0:00:04.5]} 55. d7 {[%clk 0:00:48.2]} 55... Kf5 {[%clk 0:00:05.4]} 56. d8=Q
{[%clk 0:00:47.2]} 56... Ke4 {[%clk 0:00:06.3]} 57. Qd4+ {[%clk 0:00:46.2]}
57... Kf5 {[%clk 0:00:07.2]} 58. Kg3 {[%clk 0:00:45.6]} 58... Kg6 {[%clk
0:00:07.2]} 59. Qxg4+ {[%clk 0:00:45.3]} 59... Kh7 {[%clk 0:00:08.1]} 60. Kf4
{[%clk 0:00:43.9]} 60... Kh8 {[%clk 0:00:09]} 61. Kf5 {[%clk 0:00:44.2]} 61...
Kh7 {[%clk 0:00:09.9]} 62. Kf6 {[%clk 0:00:43.7]} 62... Kh8 {[%clk 0:00:10.8]}
63. Qg7# {[%clk 0:00:42.8]} 1-0

[Event "Late-Titled-Tuesday-Blitz-December-26-2023"]
[Site "Chess.com"]
[Date "2023.12.26"]
[Round "8"]
[White "The_Straightforward_Rook"]
[Black "GMJustin"]
[Result "0-1"]
[WhiteElo "2404"]
[BlackElo "2243"]
[TimeControl "180+1"]
[EndTime "15:27:34 PST"]
[Termination "GMJustin won by checkmate"]

1. e4 {[%clk 0:02:58.7]} 1... c5 {[%clk 0:02:44.6]} 2. c3 {[%clk 0:02:57.3]}
2... e6 {[%clk 0:02:42]} 3. d4 {[%clk 0:02:54.3]} 3... d5 {[%clk 0:02:41.1]} 4.
e5 {[%clk 0:02:53.6]} 4... Nc6 {[%clk 0:02:36.6]} 5. Nf3 {[%clk 0:02:53.2]} 5...
Bd7 {[%clk 0:02:30.6]} 6. Be2 {[%clk 0:02:52.4]} 6... cxd4 {[%clk 0:02:20.9]} 7.
cxd4 {[%clk 0:02:51.7]} 7... Nge7 {[%clk 0:02:17.7]} 8. Na3 {[%clk 0:02:48]}
8... Nf5 {[%clk 0:02:11.7]} 9. Nc2 {[%clk 0:02:47.3]} 9... Nb4 {[%clk
0:02:05.5]} 10. Nxb4 {[%clk 0:02:40.6]} 10... Bxb4+ {[%clk 0:02:04.7]} 11. Bd2
{[%clk 0:02:41.5]} 11... Qb6 {[%clk 0:01:57.6]} 12. O-O {[%clk 0:02:40.9]} 12...
Nxd4 {[%clk 0:01:46.7]} 13. Ng5 {[%clk 0:01:38.2]} 13... Bxd2 {[%clk 0:01:09.5]}
14. Qxd2 {[%clk 0:01:36.1]} 14... h6 {[%clk 0:01:09.8]} 15. Nh3 {[%clk
0:01:08.2]} 15... Nxe2+ {[%clk 0:01:08.6]} 16. Qxe2 {[%clk 0:01:09.1]} 16... Bb5
{[%clk 0:01:08.3]} 17. Qg4 {[%clk 0:01:08.9]} 17... Bxf1 {[%clk 0:01:06.4]} 18.
Qxg7 {[%clk 0:01:09]} 18... O-O-O {[%clk 0:01:03.5]} 19. Rxf1 {[%clk 0:01:07.1]}
19... d4 {[%clk 0:00:51]} 20. Qxf7 {[%clk 0:01:04.7]} 20... d3 {[%clk
0:00:50.8]} 21. Nf4 {[%clk 0:00:58.4]} 21... d2 {[%clk 0:00:47.6]} 22. Rd1
{[%clk 0:00:58.5]} 22... Rd7 {[%clk 0:00:28.2]} 23. Qf6 {[%clk 0:00:35.6]} 23...
Re8 {[%clk 0:00:22.5]} 24. Qxh6 {[%clk 0:00:30]} 24... Qxb2 {[%clk 0:00:18.8]}
25. h4 {[%clk 0:00:12.7]} 25... Qxe5 {[%clk 0:00:17]} 26. g3 {[%clk 0:00:09]}
26... Qe1+ {[%clk 0:00:15.6]} 27. Rxe1 {[%clk 0:00:08.7]} 27... dxe1=Q+ {[%clk
0:00:15.1]} 28. Kg2 {[%clk 0:00:09.6]} 28... Qe4+ {[%clk 0:00:14.9]} 29. Kh2
{[%clk 0:00:09.3]} 29... e5 {[%clk 0:00:14.8]} 30. Qh5 {[%clk 0:00:08.6]} 30...
Rf8 {[%clk 0:00:13.3]} 31. Nh3 {[%clk 0:00:07.4]} 31... Qf5 {[%clk 0:00:11.6]}
32. Qe2 {[%clk 0:00:07]} 32... Kb8 {[%clk 0:00:10.4]} 33. h5 {[%clk 0:00:06.1]}
33... Rdf7 {[%clk 0:00:07.9]} 34. h6 {[%clk 0:00:05.6]} 34... Qxf2+ {[%clk
0:00:07.5]} 35. Nxf2 {[%clk 0:00:04.6]} 35... Rxf2+ {[%clk 0:00:07.5]} 36. Qxf2
{[%clk 0:00:05.5]} 36... Rxf2+ {[%clk 0:00:07.1]} 37. Kh3 {[%clk 0:00:06.4]}
37... Rf6 {[%clk 0:00:07.1]} 38. g4 {[%clk 0:00:07.3]} 38... Rxh6+ {[%clk
0:00:06.9]} 39. Kg3 {[%clk 0:00:07.7]} 39... Rg6 {[%clk 0:00:06.9]} 40. Kf3
{[%clk 0:00:08.6]} 40... Kc7 {[%clk 0:00:07.1]} 41. Kg3 {[%clk 0:00:09.5]} 41...
Kd6 {[%clk 0:00:07.3]} 42. Kf3 {[%clk 0:00:10.4]} 42... Kd5 {[%clk 0:00:07.5]}
43. Kg3 {[%clk 0:00:11.3]} 43... e4 {[%clk 0:00:07.6]} 44. Kf2 {[%clk
0:00:12.2]} 44... Ke5 {[%clk 0:00:07.4]} 45. Kg3 {[%clk 0:00:13.1]} 45... e3
{[%clk 0:00:07.1]} 46. Kf3 {[%clk 0:00:13.4]} 46... Kd4 {[%clk 0:00:07.4]} 47.
Kf4 {[%clk 0:00:13.6]} 47... e2 {[%clk 0:00:07.5]} 48. g5 {[%clk 0:00:14.5]}
48... e1=Q {[%clk 0:00:06.6]} 49. Kf5 {[%clk 0:00:15.4]} 49... Qe4# {[%clk
0:00:06.6]} 0-1

[Event "Late-Titled-Tuesday-Blitz-December-26-2023"]
[Site "Chess.com"]
[Date "2023.12.26"]
[Round "8"]
[White "baag"]
[Black "HalfIsCrayfish"]
[Result "1-0"]
[WhiteElo "2846"]
[BlackElo "2618"]
[TimeControl "180+1"]
[EndTime "15:27:37 PST"]
[Termination "baag won by resignation"]

1. d4 {[%clk 0:03:00.9]} 1... Nf6 {[%clk 0:02:59.7]} 2. c4 {[%clk 0:03:01.5]}
2... g6 {[%clk 0:02:59.6]} 3. g3 {[%clk 0:03:01.6]} 3... Bg7 {[%clk 0:02:57.9]}
4. Bg2 {[%clk 0:03:02.1]} 4... d5 {[%clk 0:02:58.6]} 5. cxd5 {[%clk 0:03:02.4]}
5... Nxd5 {[%clk 0:02:59.5]} 6. Nf3 {[%clk 0:02:58]} 6... O-O {[%clk 0:02:59.2]}
7. O-O {[%clk 0:02:58.7]} 7... c5 {[%clk 0:02:59.2]} 8. e4 {[%clk 0:02:53.4]}
8... Nf6 {[%clk 0:02:59]} 9. e5 {[%clk 0:02:54.1]} 9... Nd5 {[%clk 0:02:59.2]}
10. dxc5 {[%clk 0:02:52.4]} 10... Na6 {[%clk 0:02:59.1]} 11. Qe2 {[%clk
0:02:39.3]} 11... Nxc5 {[%clk 0:02:57.8]} 12. Rd1 {[%clk 0:02:40]} 12... e6
{[%clk 0:02:41.6]} 13. Nbd2 {[%clk 0:02:17.5]} 13... b6 {[%clk 0:02:38.1]} 14.
Nc4 {[%clk 0:02:08.2]} 14... Ba6 {[%clk 0:02:38.1]} 15. Bg5 {[%clk 0:02:06.8]}
15... Qc7 {[%clk 0:02:23.3]} 16. Rac1 {[%clk 0:02:06.5]} 16... h6 {[%clk
0:02:16.1]} 17. Bd2 {[%clk 0:02:06.6]} 17... Rac8 {[%clk 0:02:04.3]} 18. Nd4
{[%clk 0:02:03.1]} 18... Nd7 {[%clk 0:01:57.8]} 19. b3 {[%clk 0:01:10.6]} 19...
Nxe5 {[%clk 0:01:56.5]} 20. Qe4 {[%clk 0:00:58.3]} 20... Nxc4 {[%clk 0:01:51.7]}
21. bxc4 {[%clk 0:00:59.2]} 21... Bxc4 {[%clk 0:01:51.5]} 22. Nxe6 {[%clk
0:00:44.6]} 22... fxe6 {[%clk 0:01:46.9]} 23. Qxe6+ {[%clk 0:00:43.6]} 23... Kh7
{[%clk 0:01:37.3]} 24. Bxd5 {[%clk 0:00:33.8]} 24... Qc5 {[%clk 0:01:19.7]} 25.
Be3 {[%clk 0:00:17.5]} 25... Bxd5 {[%clk 0:01:16.9]} 26. Rxd5 {[%clk 0:00:18.2]}
26... Qxc1+ {[%clk 0:00:12.7]} 27. Bxc1 {[%clk 0:00:19.1]} 27... Rxc1+ {[%clk
0:00:13]} 28. Kg2 {[%clk 0:00:19]} 28... Rc2 {[%clk 0:00:12.9]} 29. Qe3 {[%clk
0:00:19.7]} 29... Rf7 {[%clk 0:00:13.1]} 30. Rd2 {[%clk 0:00:16.9]} 30... Rc5
{[%clk 0:00:12.1]} 31. h4 {[%clk 0:00:13.5]} 31... Re5 {[%clk 0:00:12.1]} 32.
Qd3 {[%clk 0:00:11.7]} 32... Ref5 {[%clk 0:00:11.5]} 33. Re2 {[%clk 0:00:11.7]}
33... h5 {[%clk 0:00:10.6]} 34. a4 {[%clk 0:00:10.5]} 34... Bf8 {[%clk
0:00:10.2]} 35. f4 {[%clk 0:00:05.3]} 35... Bc5 {[%clk 0:00:09]} 36. Re8 {[%clk
0:00:05.4]} 36... R5f6 {[%clk 0:00:08.3]} 37. Qc3 {[%clk 0:00:05.6]} 37... Kg7
{[%clk 0:00:07.9]} 38. Re6 {[%clk 0:00:05.7]} 38... a5 {[%clk 0:00:06.5]} 39.
Kf3 {[%clk 0:00:05.7]} 39... Bf8 {[%clk 0:00:06.8]} 40. Rxb6 {[%clk 0:00:04.3]}
40... Bb4 {[%clk 0:00:05.6]} 41. Qe5 {[%clk 0:00:04.6]} 41... Ba3 {[%clk
0:00:03.7]} 42. Rxf6 {[%clk 0:00:04.1]} 42... Rxf6 {[%clk 0:00:04.6]} 43. Qxa5
{[%clk 0:00:04.4]} 43... Rf7 {[%clk 0:00:03.8]} 44. Qc3+ {[%clk 0:00:04.5]} 1-0

[Event "Late-Titled-Tuesday-Blitz-December-26-2023"]
[Site "Chess.com"]
[Date "2023.12.26"]
[Round "8"]
[White "prime-morty"]
[Black "TanitoluwaAps116"]
[Result "1/2-1/2"]
[WhiteElo "2576"]
[BlackElo "2757"]
[TimeControl "180+1"]
[EndTime "15:27:41 PST"]
[Termination "Game drawn - insufficient material"]

1. c4 {[%clk 0:03:00.3]} 1... e5 {[%clk 0:03:00]} 2. Nc3 {[%clk 0:03:00.5]} 2...
Nc6 {[%clk 0:03:00.4]} 3. g3 {[%clk 0:02:59.4]} 3... g6 {[%clk 0:02:58.2]} 4.
Bg2 {[%clk 0:02:59.9]} 4... d6 {[%clk 0:02:58.7]} 5. Rb1 {[%clk 0:02:59.3]} 5...
Be6 {[%clk 0:02:57.7]} 6. d3 {[%clk 0:02:58.3]} 6... Bg7 {[%clk 0:02:57.6]} 7.
b4 {[%clk 0:02:57.9]} 7... Qc8 {[%clk 0:02:49.8]} 8. b5 {[%clk 0:02:57.2]} 8...
Nce7 {[%clk 0:02:48.9]} 9. e4 {[%clk 0:02:55.2]} 9... h5 {[%clk 0:02:48.7]} 10.
h3 {[%clk 0:02:54.7]} 10... h4 {[%clk 0:02:48.5]} 11. g4 {[%clk 0:02:54.8]}
11... f5 {[%clk 0:02:48.6]} 12. exf5 {[%clk 0:02:52.5]} 12... gxf5 {[%clk
0:02:49.5]} 13. gxf5 {[%clk 0:02:51.2]} 13... Nxf5 {[%clk 0:02:47.8]} 14. Nge2
{[%clk 0:02:51.6]} 14... Nf6 {[%clk 0:02:47.7]} 15. Bg5 {[%clk 0:02:47.2]} 15...
Nh7 {[%clk 0:02:23]} 16. Bd2 {[%clk 0:02:40]} 16... O-O {[%clk 0:02:18.5]} 17.
O-O {[%clk 0:02:32.6]} 17... Nd4 {[%clk 0:02:07.3]} 18. Nxd4 {[%clk 0:02:29.2]}
18... exd4 {[%clk 0:02:08.2]} 19. Nd5 {[%clk 0:02:29.6]} 19... Qd7 {[%clk
0:01:48.9]} 20. Qh5 {[%clk 0:02:25.6]} 20... Rae8 {[%clk 0:01:34.3]} 21. Be4
{[%clk 0:02:05.2]} 21... Bf5 {[%clk 0:01:24.5]} 22. Bxf5 {[%clk 0:02:03]} 22...
Rxf5 {[%clk 0:01:21.5]} 23. Qxh4 {[%clk 0:02:03.4]} 23... Rf3 {[%clk 0:01:08.4]}
24. Rbe1 {[%clk 0:01:57.9]} 24... Be5 {[%clk 0:00:33.4]} 25. Qg4+ {[%clk
0:01:23.3]} 25... Qxg4+ {[%clk 0:00:31.8]} 26. hxg4 {[%clk 0:01:24.2]} 26...
Rxd3 {[%clk 0:00:20.8]} 27. Bf4 {[%clk 0:01:20.9]} 27... c6 {[%clk 0:00:17.1]}
28. bxc6 {[%clk 0:01:19.2]} 28... bxc6 {[%clk 0:00:18]} 29. Nb4 {[%clk
0:01:16.8]} 29... Rf3 {[%clk 0:00:18.5]} 30. Bxe5 {[%clk 0:01:16.1]} 30... dxe5
{[%clk 0:00:19.4]} 31. Nxc6 {[%clk 0:01:16.6]} 31... Ng5 {[%clk 0:00:14.4]} 32.
Rxe5 {[%clk 0:01:10.8]} 32... Rxe5 {[%clk 0:00:13.7]} 33. Nxe5 {[%clk 0:01:11]}
33... Ra3 {[%clk 0:00:07.4]} 34. Rd1 {[%clk 0:01:09.6]} 34... Ra5 {[%clk
0:00:04.3]} 35. Nc6 {[%clk 0:00:58.2]} 35... Rxa2 {[%clk 0:00:04.8]} 36. Nxd4
{[%clk 0:00:57.9]} 36... Nh3+ {[%clk 0:00:05]} 37. Kg2 {[%clk 0:00:56.8]} 37...
Nxf2 {[%clk 0:00:05.3]} 38. Rb1 {[%clk 0:00:53.5]} 38... Nxg4+ {[%clk
0:00:04.1]} 39. Kg3 {[%clk 0:00:53.1]} 39... Ne5 {[%clk 0:00:02.7]} 40. c5
{[%clk 0:00:51.8]} 40... Kf7 {[%clk 0:00:02.9]} 41. Rb7+ {[%clk 0:00:51.1]}
41... Kf6 {[%clk 0:00:02.8]} 42. c6 {[%clk 0:00:50]} 42... Ra4 {[%clk
0:00:01.9]} 43. c7 {[%clk 0:00:44]} 43... Rc4 {[%clk 0:00:02.4]} 44. Rxa7 {[%clk
0:00:43.6]} 44... Nf7 {[%clk 0:00:01.4]} 45. Nb5 {[%clk 0:00:43.1]} 45... Ke6
{[%clk 0:00:01.6]} 46. Ra6+ {[%clk 0:00:30.2]} 46... Kd7 {[%clk 0:00:01.4]} 47.
Rf6 {[%clk 0:00:30.6]} 47... Ke7 {[%clk 0:00:01.7]} 48. Rxf7+ {[%clk 0:00:30.3]}
48... Kxf7 {[%clk 0:00:01.9]} 49. Nd6+ {[%clk 0:00:30.8]} 49... Ke7 {[%clk
0:00:02.4]} 50. Nxc4 {[%clk 0:00:31.7]} 50... Kd7 {[%clk 0:00:03.1]} 51. c8=Q+
{[%clk 0:00:31.2]} 51... Kxc8 {[%clk 0:00:03.6]} 1/2-1/2